bitfinex/quotes_BTCUSD_20241021
["timestamp","ask_amount","ask_price","bid_price","bid_amount"]
[1729473335324,0.147339,69281.0,69280.0,0.01557517]
[1729473335527,0.003,69281.0,69280.0,0.01557517]
[1729473335727,0.147339,69281.0,69280.0,0.01557517]
[1729473335930,0.150339,69281.0,69280.0,0.01557517]
[1729473337543,0.150339,69281.0,69280.0,0.00480136]
[1729473337966,0.150339,69281.0,69280.0,0.02802384]
[1729473338187,0.150339,69281.0,69280.0,0.01558231]
[1729473338763,0.150339,69281.0,69280.0,0.03282775]
[1729473338960,0.150339,69281.0,69280.0,0.01558231]
[1729473339421,0.150339,69281.0,69280.0,0.02327118]
[1729473339596,0.150339,69281.0,69280.0,0.04051662]
[1729473340515,0.147339,69281.0,69280.0,0.04051662]
[1729473341508,0.147339,69281.0,69280.0,0.04220398]
[1729473341874,0.144339,69281.0,69280.0,0.0297112]
[1729473342103,0.000829,69288.0,69280.0,0.01415826]
[1729473342325,0.14433,69286.0,69281.0,0.03938226]
[1729473342510,0.145155,69288.0,69282.0,0.08417457]
[1729473342716,0.000829,69288.0,69283.0,0.0717534]
[1729473342918,0.000829,69288.0,69282.0,0.01242117]
[1729473342919,0.145154,69288.0,69284.0,0.0761548]
[1729473343118,0.000829,69288.0,69285.0,0.0717534]
[1729473343332,0.000829,69288.0,69286.0,0.07615362]
[1729473343547,0.000829,69288.0,69287.0,0.0717534]
[1729473343754,0.000829,69288.0,69287.0,0.07615304]
[1729473343965,0.000829,69288.0,69287.0,0.0717534]
[1729473344190,0.145154,69288.0,69287.0,0.0717534]
[1729473345689,0.000829,69288.0,69287.0,0.0727534]
[1729473345920,0.145154,69288.0,69287.0,0.0717534]
[1729473346364,0.145154,69288.0,69287.0,0.0737534]
[1729473346652,0.097729,69288.0,69287.0,0.0737534]
[1729473346882,0.242054,69288.0,69287.0,0.0737534]
[1729473347057,0.242054,69288.0,69287.0,0.0727534]
[1729473347265,0.242054,69288.0,69287.0,0.08076952]
[1729473347472,0.242054,69288.0,69287.0,0.22609652]
[1729473347473,0.097729,69288.0,69287.0,0.22609652]
[1729473347680,0.097729,69288.0,69287.0,0.22247408]
[1729473347889,0.000829,69288.0,69287.0,0.22247408]
[1729473348086,0.000829,69288.0,69287.0,0.2294902]
[1729473348521,0.000829,69288.0,69287.0,0.2305592]
[1729473348725,0.000829,69288.0,69287.0,0.22254308]
[1729473348922,0.000829,69288.0,69287.0,0.1718728]
[1729473349128,0.000829,69288.0,69287.0,0.22257775]
[1729473349330,0.000829,69288.0,69287.0,0.27227997]
[1729473349530,0.000829,69288.0,69287.0,0.28030779]
[1729473349756,0.000829,69288.0,69287.0,0.27127997]
[1729473349924,0.000829,69288.0,69287.0,0.27227997]
[1729473350340,0.000829,69288.0,69287.0,0.13597953]
[1729473350542,0.321054,69288.0,69287.0,0.13597953]
[1729473350752,0.321054,69288.0,69287.0,0.12355929]
[1729473350922,0.321054,69288.0,69287.0,0.10194963]
[1729473351152,0.321054,69288.0,69287.0,0.09231725]
[1729473351590,0.58501315,69288.0,69287.0,0.09231725]
[1729473351850,0.58501315,69288.0,69287.0,0.05170495]
[1729473352067,0.58501315,69288.0,69287.0,0.05070495]
[1729473352309,0.58501315,69288.0,69287.0,0.05551742]
[1729473352522,0.58501315,69288.0,69287.0,0.05170495]
[1729473352735,0.58501315,69288.0,69287.0,0.001]
[1729473352961,0.58501315,69288.0,69280.0,0.001658]
[1729473352962,0.159339,69281.0,69280.0,0.001658]
[1729473353264,0.159339,69281.0,69275.0,0.000154]
[1729473353265,0.01,69277.0,69275.0,0.000154]
[1729473353481,0.559287,69280.0,69275.0,0.000154]
[1729473353482,0.47390915,69276.0,69275.0,0.000154]
[1729473353967,0.47890915,69276.0,69275.0,0.000154]
[1729473354174,0.32995,69276.0,69275.0,0.000154]
[1729473354395,0.31995,69276.0,69275.0,0.000154]
[1729473355452,0.31495,69276.0,69275.0,0.000154]
[1729473355684,0.31995,69276.0,69275.0,0.000154]
[1729473355889,0.32295,69276.0,69275.0,0.000154]
[1729473356293,0.31995,69276.0,69275.0,0.000154]
[1729473356494,0.31495,69276.0,69275.0,0.000154]
[1729473356708,0.31995,69276.0,69275.0,0.000154]
[1729473357852,0.31495,69276.0,69275.0,0.000154]
[1729473359495,0.46890915,69276.0,69275.0,0.001154]
[1729473359963,0.46890915,69276.0,69275.0,0.002154]
[1729473359964,0.47890915,69276.0,69275.0,0.002154]
[1729473360168,0.50190915,69276.0,69275.0,0.002154]
[1729473360407,0.8346828,69276.0,69275.0,0.000154]
[1729473360631,0.8346828,69276.0,69273.0,0.001654]
[1729473360632,0.236754,69274.0,69273.0,0.001654]
[1729473360813,0.60471315,69274.0,69273.0,0.001654]
[1729473361020,0.60471315,69274.0,69263.0,0.21563652]
[1729473361021,0.322775,69264.0,69263.0,0.21563652]
[1729473361229,0.47173415,69264.0,69263.0,0.21563652]
[1729473361435,0.005,69256.0,69253.0,0.04311264]
[1729473361670,0.005,69256.0,69247.0,0.21563652]
[1729473361671,0.1747,69253.0,69249.0,0.04321131]
[1729473361882,0.1747,69253.0,69247.0,0.22523547]
[1729473361883,0.288804,69251.0,69248.0,0.04321131]
[1729473362115,0.463497,69253.0,69249.0,0.06481697]
[1729473362334,0.463497,69253.0,69246.0,0.001656]
[1729473362335,0.0971,69261.0,69251.0,0.08642263]
[1729473362544,0.0971,69261.0,69258.0,0.04319662]
[1729473362545,0.144385,69259.0,69258.0,0.04319662]
[1729473362764,0.293766,69260.0,69256.0,0.06479494]
[1729473362765,0.005,69260.0,69256.0,0.06479494]
[1729473362978,0.005,69260.0,69248.0,0.3032109]
[1729473362979,0.005,69260.0,69257.0,0.07439389]
[1729473363198,0.0804,69265.0,69257.0,0.06479494]
[1729473363411,0.144383,69260.0,69259.0,0.04318616]
[1729473363616,0.144383,69260.0,69258.0,0.03454157]
[1729473363617,0.005,69259.0,69257.0,0.04318616]
[1729473363851,0.005,69259.0,69256.0,0.01726466]
[1729473363852,0.005,69258.0,69256.0,0.01726466]
[1729473364057,0.005,69258.0,69249.0,0.08639325]
[1729473364058,0.005,69255.0,69249.0,0.04318616]
[1729473364269,0.091,69259.0,69247.0,0.04318616]
[1729473364270,0.084,69253.0,69247.0,0.04318616]
[1729473364507,0.005,69251.0,69246.0,0.04484216]
[1729473364713,0.14441,69247.0,69246.0,0.001656]
[1729473364938,0.144403,69251.0,69246.0,0.2401324]
[1729473365143,0.1444,69253.0,69249.0,0.06475655]
[1729473365349,0.005,69271.0,69249.0,0.06475655]
[1729473365350,0.005,69262.0,69256.0,0.14439]
[1729473365554,0.005,69262.0,69259.0,0.001658]
[1729473365796,0.005,69262.0,69260.0,0.02324805]
[1729473365797,0.14938,69262.0,69260.0,0.02324805]
[1729473365996,0.14938,69262.0,69259.0,0.001658]
[1729473365997,0.1749,69267.0,69261.0,0.02324805]
[1729473366222,0.1749,69267.0,69263.0,0.144377]
[1729473366223,0.144369,69267.0,69263.0,0.144377]
[1729473366437,0.21563652,69273.0,69266.0,0.0431673]
[1729473366638,0.005,69272.0,69267.0,0.02324805]
[1729473366839,0.005,69272.0,69268.0,0.02324805]
[1729473367069,0.50434852,69273.0,69268.0,0.02324805]
[1729473367070,0.35999352,69273.0,69269.0,0.02324805]
[1729473367273,0.005,69274.0,69270.0,0.02324805]
[1729473367493,0.293698,69277.0,69271.0,0.02324805]
[1729473367695,0.14435,69276.0,69272.0,0.02324805]
[1729473367900,0.005,69275.0,69273.0,0.02324805]
[1729473368085,0.005,69275.0,69269.0,0.3318953]
[1729473368086,0.005,69275.0,69274.0,0.02324805]
[1729473368308,0.149352,69275.0,69274.0,0.02324805]
[1729473369239,0.149352,69275.0,69274.0,0.0155759]
[1729473369490,0.144352,69275.0,69274.0,0.02324805]
[1729473369640,0.144352,69275.0,69274.0,0.0155759]
[1729473369841,0.148352,69275.0,69274.0,0.0155759]
[1729473370091,0.152352,69275.0,69274.0,0.0155759]
[1729473370619,0.152352,69275.0,69274.0,0.02324805]
[1729473370745,0.148352,69275.0,69274.0,0.0155759]
[1729473371202,0.148352,69275.0,69274.0,0.02324805]
[1729473371403,0.148352,69275.0,69274.0,0.0155759]
[1729473371607,0.144352,69275.0,69274.0,0.0155759]
[1729473372010,0.149352,69275.0,69274.0,0.02324805]
[1729473372255,0.149352,69275.0,69274.0,0.0165759]
[1729473372475,0.149352,69275.0,69274.0,0.02424805]
[1729473372701,0.144352,69275.0,69274.0,0.02324805]
[1729473373228,0.144352,69275.0,69274.0,0.02424805]
[1729473373637,0.149352,69275.0,69274.0,0.02424805]
[1729473373840,0.149352,69275.0,69274.0,0.02524805]
[1729473374745,0.149352,69275.0,69274.0,0.02424805]
[1729473375579,0.149352,69275.0,69274.0,0.02524805]
[1729473375786,0.149352,69275.0,69274.0,0.01446626]
[1729473375989,0.144352,69275.0,69274.0,0.02425105]
[1729473376193,0.149352,69275.0,69274.0,0.04150671]
[1729473376376,0.149352,69275.0,69274.0,0.04250671]
[1729473376825,0.149352,69275.0,69274.0,0.04150671]
[1729473377710,0.149352,69275.0,69274.0,0.04250671]
[1729473378143,0.149352,69275.0,69274.0,0.04050671]
[1729473378379,0.149352,69275.0,69274.0,0.04150671]
[1729473378567,0.149352,69275.0,69274.0,0.04250671]
[1729473380371,0.149352,69275.0,69274.0,0.05210566]
[1729473380821,0.149352,69275.0,69274.0,0.05210375]
[1729473381018,0.149352,69275.0,69274.0,0.04250671]
[1729473381469,0.149352,69275.0,69274.0,0.05210527]
[1729473381885,0.149352,69275.0,69274.0,0.04250671]
[1729473382359,0.149352,69275.0,69274.0,0.05210571]
[1729473382584,0.149352,69275.0,69274.0,0.04250671]
[1729473385977,0.149352,69275.0,69274.0,0.04150671]
[1729473386393,0.149352,69275.0,69274.0,0.01447532]
[1729473386611,0.149352,69275.0,69274.0,0.0415653]
[1729473386952,0.149352,69275.0,69274.0,0.0408653]
[1729473387171,0.149352,69275.0,69274.0,0.0418653]
[1729473387585,0.149352,69275.0,69274.0,0.0408653]
[1729473387991,0.149352,69275.0,69274.0,0.0415653]
[1729473387992,0.48821115,69275.0,69274.0,0.0415653]
[1729473388191,0.58821115,69275.0,69274.0,0.01660164]
[1729473388389,0.58821115,69275.0,69274.0,0.01760164]
[1729473388617,0.58821115,69275.0,69274.0,0.0067978]
[1729473388979,0.58821115,69275.0,69274.0,0.0057978]
[1729473389195,0.58821115,69275.0,69274.0,0.0067978]
[1729473389446,0.58821115,69275.0,69274.0,0.01760271]
[1729473389696,0.58904015,69275.0,69274.0,0.01560271]
[1729473389892,0.58904015,69275.0,69274.0,0.01660188]
[1729473390303,0.59604015,69275.0,69274.0,0.02427991]
[1729473390522,0.59604015,69275.0,69274.0,0.04156654]
[1729473390721,0.60404015,69275.0,69274.0,0.04156654]
[1729473391139,0.455081,69275.0,69274.0,0.04156654]
[1729473391718,0.265181,69275.0,69274.0,0.04156654]
[1729473391919,0.160181,69275.0,69274.0,0.04156654]
[1729473392482,0.165181,69275.0,69274.0,0.04156654]
[1729473393287,0.50334015,69275.0,69274.0,0.02909071]
[1729473393488,0.50334015,69275.0,69274.0,0.01348243]
[1729473393696,0.50334015,69275.0,69274.0,0.04927113]
[1729473394095,0.50334015,69275.0,69274.0,0.0242931]
[1729473394317,0.60334015,69275.0,69274.0,0.02429785]
[1729473394761,0.60334015,69275.0,69274.0,0.01661061]
[1729473395203,0.60334015,69275.0,69274.0,0.04160484]
[1729473395419,0.60334015,69275.0,69274.0,0.02429751]
[1729473395644,0.60334015,69275.0,69274.0,0.04161318]
[1729473395857,0.60334015,69275.0,69274.0,0.02429751]
[1729473396342,0.60334015,69275.0,69274.0,0.04161722]
[1729473396557,0.60334015,69275.0,69274.0,0.01661061]
[1729473397005,0.60334015,69275.0,69274.0,0.01661551]
[1729473397216,0.60334015,69275.0,69274.0,0.0166286]
[1729473399041,0.60334015,69275.0,69274.0,0.04162826]
[1729473399259,0.60334015,69275.0,69274.0,0.04162824]
[1729473399413,0.60334015,69275.0,69274.0,0.0166286]
[1729473399616,0.60334015,69275.0,69274.0,0.04162766]
[1729473400188,0.373281,69275.0,69274.0,0.04162766]
[1729473400400,0.270181,69275.0,69274.0,0.001]
[1729473400598,0.270181,69275.0,69274.0,0.05672225]
[1729473400599,0.265181,69275.0,69274.0,0.05672225]
[1729473400842,0.265181,69275.0,69274.0,0.08485088]
[1729473401033,0.165181,69275.0,69274.0,0.06975125]
[1729473401830,0.170181,69275.0,69274.0,0.11463735]
[1729473402025,0.170181,69275.0,69274.0,0.0589147]
[1729473402270,0.170181,69275.0,69274.0,0.04328099]
[1729473402559,0.175181,69275.0,69274.0,0.11463596]
[1729473402765,0.175181,69275.0,69274.0,0.14276479]
[1729473402976,0.175181,69275.0,69274.0,0.08650803]
[1729473403984,0.165181,69275.0,69274.0,0.08650803]
[1729473404231,0.165181,69275.0,69274.0,0.04328079]
[1729473406802,0.165181,69275.0,69274.0,0.08650811]
[1729473407569,0.165181,69275.0,69274.0,0.08650846]
[1729473407723,0.165181,69275.0,69274.0,0.04328114]
[1729473408168,0.170181,69275.0,69274.0,0.04328114]
[1729473408371,0.175181,69275.0,69274.0,0.04328114]
[1729473408570,0.175181,69275.0,69274.0,0.10812977]
[1729473410628,0.175181,69275.0,69274.0,0.04328114]
[1729473411221,0.175181,69275.0,69274.0,0.01347655]
[1729473411419,0.175181,69275.0,69274.0,0.01515319]
[1729473411620,0.175181,69275.0,69274.0,0.12974871]
[1729473412028,0.175181,69275.0,69274.0,0.12974846]
[1729473412190,0.175181,69275.0,69274.0,0.04328362]
[1729473412638,0.175181,69275.0,69274.0,0.15136468]
[1729473412868,0.175181,69275.0,69274.0,0.04328362]
[1729473413753,0.175181,69275.0,69274.0,0.12982693]
[1729473414232,0.175181,69275.0,69274.0,0.12982682]
[1729473414903,0.175181,69275.0,69274.0,0.002658]
[1729473415151,0.175181,69275.0,69274.0,0.03246262]
[1729473415386,0.175181,69275.0,69274.0,0.06059098]
[1729473416307,0.175181,69275.0,69274.0,0.14713541]
[1729473416568,0.175181,69275.0,69274.0,0.06059098]
[1729473416827,0.168181,69275.0,69274.0,0.05959098]
[1729473417055,0.247681,69275.0,69274.0,0.05959098]
[1729473417482,0.239681,69275.0,69274.0,0.05959098]
[1729473417729,0.239681,69275.0,69274.0,0.06059098]
[1729473417929,0.239681,69275.0,69274.0,0.06159098]
[1729473418132,0.239681,69275.0,69274.0,0.06059098]
[1729473418331,0.239681,69275.0,69274.0,0.06159098]
[1729473418588,0.239681,69275.0,69274.0,0.14813568]
[1729473418809,0.239681,69275.0,69274.0,0.06159098]
[1729473420000,0.000829,69275.0,69274.0,0.20594498]
[1729473420222,0.000829,69275.0,69274.0,0.36451881]
[1729473420424,0.000829,69275.0,69274.0,0.4145793]
[1729473420626,0.000829,69275.0,69274.0,0.36951881]
[1729473420778,0.000829,69275.0,69274.0,0.36451881]
[1729473420977,0.000829,69275.0,69274.0,0.36951881]
[1729473421183,0.000829,69275.0,69274.0,0.34039045]
[1729473421392,0.000829,69275.0,69274.0,0.36851336]
[1729473421597,0.000829,69275.0,69274.0,0.34519526]
[1729473421826,0.000829,69275.0,69274.0,0.37910969]
[1729473422053,0.000829,69275.0,69274.0,0.36849501]
[1729473422484,0.000829,69275.0,69274.0,0.36949501]
[1729473422692,0.000829,69275.0,69274.0,0.36849501]
[1729473422892,0.000829,69275.0,69274.0,0.35018525]
[1729473423375,0.000829,69275.0,69274.0,0.0518721]
[1729473423568,0.000829,69275.0,69274.0,0.18158155]
[1729473423885,0.000829,69275.0,69274.0,0.0518721]
[1729473424116,0.000829,69275.0,69274.0,0.1962261]
[1729473424534,0.000829,69275.0,69274.0,0.21063582]
[1729473425169,0.000829,69275.0,69274.0,0.20397862]
[1729473425526,0.000829,69275.0,69274.0,0.21838734]
[1729473425752,0.000829,69275.0,69274.0,0.21838749]
[1729473427551,0.000829,69275.0,69274.0,0.20397862]
[1729473428260,0.000829,69275.0,69274.0,0.21838979]
[1729473429041,0.000829,69275.0,69274.0,0.20397862]
[1729473430861,0.000829,69275.0,69274.0,0.20497862]
[1729473431071,0.000829,69275.0,69274.0,0.20397862]
[1729473431490,0.000829,69275.0,69274.0,0.20497862]
[1729473431940,0.000829,69275.0,69274.0,0.20397862]
[1729473432148,0.000829,69275.0,69274.0,0.20497659]
[1729473432352,0.000829,69275.0,69274.0,0.15376452]
[1729473432564,0.000829,69275.0,69274.0,0.19148224]
[1729473432773,0.000829,69275.0,69274.0,0.20497045]
[1729473433624,0.000829,69275.0,69274.0,0.2088396]
[1729473434244,0.000829,69275.0,69274.0,0.07890093]
[1729473434649,0.000829,69275.0,69274.0,0.0634856]
[1729473434985,0.000829,69275.0,69274.0,0.2088396]
[1729473435181,0.000829,69275.0,69274.0,0.22225533]
[1729473435395,0.000829,69275.0,69274.0,0.2078396]
[1729473435612,0.000829,69275.0,69274.0,0.2088396]
[1729473435815,0.000829,69275.0,69274.0,0.2078396]
[1729473436218,0.000829,69275.0,69274.0,0.2088396]
[1729473436475,0.000829,69275.0,69274.0,0.0634856]
[1729473436683,0.145181,69275.0,69274.0,0.18595586]
[1729473436886,0.145181,69275.0,69274.0,0.17154005]
[1729473437107,0.145181,69275.0,69274.0,0.0634856]
[1729473437317,0.145181,69275.0,69274.0,0.17154005]
[1729473437663,0.145181,69275.0,69274.0,0.0634856]
[1729473437867,0.145181,69275.0,69274.0,0.0644856]
[1729473438073,0.145181,69275.0,69274.0,0.17154005]
[1729473438589,0.145181,69275.0,69274.0,0.0644856]
[1729473439264,0.145181,69275.0,69274.0,0.17254005]
[1729473439659,0.145181,69275.0,69274.0,0.0644856]
[1729473439891,0.145181,69275.0,69274.0,0.15894741]
[1729473440288,0.145181,69275.0,69274.0,0.15093794]
[1729473441471,0.145181,69275.0,69274.0,0.15895329]
[1729473441710,0.145181,69275.0,69274.0,0.07248935]
[1729473442238,0.145181,69275.0,69274.0,0.06086768]
[1729473442497,0.145181,69275.0,69274.0,0.05186393]
[1729473442729,0.145181,69275.0,69274.0,0.15046065]
[1729473442971,0.145181,69275.0,69274.0,0.06450234]
[1729473443657,0.145181,69275.0,69274.0,0.17255679]
[1729473444672,0.145181,69275.0,69274.0,0.06450375]
[1729473445539,0.145181,69275.0,69274.0,0.06350375]
[1729473445748,0.145181,69275.0,69274.0,0.06450375]
[1729473446598,0.145181,69275.0,69274.0,0.06450743]
[1729473447256,0.230181,69275.0,69274.0,0.06450743]
[1729473447885,0.230181,69275.0,69274.0,0.05286869]
[1729473448101,0.230181,69275.0,69274.0,0.05186869]
[1729473448553,0.230181,69275.0,69274.0,0.16102735]
[1729473449200,0.230181,69275.0,69274.0,0.17048926]
[1729473449419,0.230181,69275.0,69274.0,0.0633306]
[1729473449420,0.000829,69275.0,69274.0,0.0633306]
[1729473449921,0.000829,69275.0,69274.0,0.2076846]
[1729473450143,0.000829,69275.0,69274.0,0.33552616]
[1729473450377,0.000829,69275.0,69274.0,0.55528868]
[1729473450592,0.000829,69276.0,69275.0,0.144352]
[1729473450805,0.000829,69276.0,69275.0,0.49743377]
[1729473451017,0.000829,69276.0,69275.0,0.54561587]
[1729473451237,0.000829,69276.0,69275.0,0.54557202]
[1729473451665,0.000829,69276.0,69275.0,0.62417202]
[1729473451885,0.000829,69288.0,69286.0,0.222929]
[1729473452108,0.000829,69288.0,69287.0,0.19743254]
[1729473452324,0.000829,69288.0,69287.0,0.21284338]
[1729473452537,0.000829,69288.0,69287.0,0.234456]
[1729473452969,0.000829,69288.0,69287.0,0.236456]
[1729473453188,0.000829,69288.0,69287.0,0.52763731]
[1729473453391,0.000829,69288.0,69287.0,0.52475121]
[1729473453816,0.000829,69288.0,69287.0,0.52471547]
[1729473454213,0.000829,69288.0,69287.0,0.47969325]
[1729473454492,0.000829,69288.0,69287.0,0.5246584]
[1729473455361,0.000829,69288.0,69287.0,0.67084289]
[1729473456242,0.000829,69288.0,69287.0,0.47969325]
[1729473456863,0.000829,69288.0,69287.0,0.42991792]
[1729473457094,0.000829,69288.0,69287.0,0.47950194]
[1729473457301,0.000829,69288.0,69287.0,0.47750194]
[1729473457512,0.000829,69288.0,69287.0,0.60689215]
[1729473457722,0.000829,69288.0,69287.0,0.50969215]
[1729473457929,0.000829,69288.0,69287.0,0.38030194]
[1729473458570,0.000829,69288.0,69287.0,0.38230194]
[1729473458964,0.000829,69288.0,69287.0,0.38030194]
[1729473460076,0.000829,69288.0,69287.0,0.39466543]
[1729473460293,0.000829,69288.0,69287.0,0.3726445]
[1729473460503,0.000829,69288.0,69287.0,0.39461198]
[1729473462450,0.000829,69288.0,69287.0,0.39459804]
[1729473462872,0.000829,69288.0,69287.0,0.37305906]
[1729473463561,0.000829,69288.0,69287.0,0.35369974]
[1729473463802,0.000829,69288.0,69287.0,0.35869974]
[1729473464062,0.000829,69288.0,69287.0,0.23862059]
[1729473464287,0.000829,69288.0,69287.0,0.06041359]
[1729473464527,0.000829,69288.0,69287.0,0.13304469]
[1729473464761,0.000829,69288.0,69287.0,0.12507842]
[1729473465252,0.000829,69288.0,69287.0,0.26940542]
[1729473465496,0.000829,69288.0,69287.0,0.20474059]
[1729473465748,0.000829,69288.0,69287.0,0.2989251]
[1729473467649,0.000829,69288.0,69287.0,0.27090755]
[1729473467856,0.000829,69288.0,69287.0,0.29891156]
[1729473468465,0.000829,69288.0,69287.0,0.29094392]
[1729473468689,0.000829,69288.0,69287.0,0.21269391]
[1729473469293,0.000829,69288.0,69287.0,0.29094392]
[1729473469709,0.000829,69288.0,69287.0,0.21269479]
[1729473469929,0.000829,69288.0,69287.0,0.20472568]
[1729473470137,0.000829,69288.0,69287.0,0.29093908]
[1729473470346,0.000829,69288.0,69287.0,0.37882541]
[1729473470557,0.000829,69288.0,69287.0,0.37593908]
[1729473470996,0.000829,69288.0,69287.0,0.28974008]
[1729473471244,0.000829,69288.0,69287.0,0.31775227]
[1729473472085,0.000829,69288.0,69287.0,0.32396567]
[1729473472501,0.000829,69288.0,69287.0,0.23775227]
[1729473473346,0.000829,69288.0,69287.0,0.23128768]
[1729473474403,0.000829,69288.0,69287.0,0.23133039]
[1729473475195,0.000829,69288.0,69287.0,0.14666367]
[1729473475395,0.000829,69288.0,69287.0,0.14666375]
[1729473476223,0.000829,69288.0,69287.0,0.16104135]
[1729473476428,0.000829,69288.0,69287.0,0.08200339]
[1729473476633,0.000829,69288.0,69287.0,0.14666375]
[1729473477033,0.000829,69288.0,69287.0,0.08203603]
[1729473477241,0.000829,69288.0,69287.0,0.30540099]
[1729473477877,0.000829,69288.0,69287.0,0.25581989]
[1729473478085,0.000829,69288.0,69287.0,0.30548057]
[1729473478292,0.000829,69288.0,69287.0,0.29108797]
[1729473478921,0.000829,69288.0,69287.0,0.22642334]
[1729473479320,0.000829,69288.0,69287.0,0.29608797]
[1729473479518,0.000829,69288.0,69287.0,0.23142334]
[1729473480259,0.000829,69288.0,69287.0,0.29609159]
[1729473480699,0.000829,69288.0,69287.0,0.23142334]
[1729473480924,0.000829,69288.0,69287.0,0.39864285]
[1729473481079,0.000829,69288.0,69287.0,0.29518771]
[1729473481281,0.000829,69288.0,69287.0,0.3124548]
[1729473484202,0.000829,69288.0,69287.0,0.29039231]
[1729473484408,0.000829,69288.0,69287.0,0.42023668]
[1729473484621,0.000829,69288.0,69287.0,0.31246229]
[1729473484843,0.000829,69288.0,69287.0,0.42032828]
[1729473485692,0.000829,69288.0,69287.0,0.42037096]
[1729473485903,0.000829,69288.0,69287.0,0.31255389]
[1729473486122,0.000829,69288.0,69287.0,0.42037196]
[1729473486609,0.000829,69288.0,69287.0,0.31255389]
[1729473487220,0.000818,69294.0,69287.0,0.16822689]
[1729473487426,0.000818,69294.0,69293.0,0.04313735]
[1729473487666,0.000818,69294.0,69293.0,0.07181605]
[1729473487907,0.000818,69294.0,69293.0,0.14535962]
[1729473488145,0.000818,69294.0,69293.0,0.09561355]
[1729473488352,0.000818,69294.0,69293.0,0.14538628]
[1729473489427,0.000818,69294.0,69293.0,0.08068026]
[1729473490282,0.000818,69294.0,69293.0,0.16695496]
[1729473491777,0.000818,69294.0,69293.0,0.37395341]
[1729473492187,0.000818,69294.0,69293.0,0.52628938]
[1729473492406,0.000818,69294.0,69293.0,0.53877284]
[1729473492616,0.000818,69294.0,69293.0,0.50330063]
[1729473492903,0.000818,69294.0,69293.0,0.37397136]
[1729473493322,0.000818,69294.0,69293.0,0.50851443]
[1729473493531,0.000818,69294.0,69293.0,0.42604847]
[1729473493744,0.000818,69294.0,69293.0,0.4240417]
[1729473495044,0.000818,69294.0,69293.0,0.37897136]
[1729473496078,0.000818,69294.0,69293.0,0.3071107]
[1729473496301,0.000818,69294.0,69293.0,0.37892694]
[1729473496524,0.000818,69294.0,69293.0,0.35685649]
[1729473496812,0.000818,69294.0,69293.0,0.37892566]
[1729473497709,0.000818,69294.0,69293.0,0.61552024]
[1729473497923,0.000818,69294.0,69293.0,0.50418]
[1729473498820,0.000818,69294.0,69293.0,0.60408]
[1729473499033,0.000818,69298.0,69297.0,0.151306]
[1729473499255,0.000818,69298.0,69297.0,0.41713445]
[1729473499521,0.000818,69298.0,69297.0,0.42591107]
[1729473499965,0.000818,69298.0,69297.0,0.4258906]
[1729473501725,0.000818,69298.0,69297.0,0.38083626]
[1729473502401,0.000818,69303.0,69302.0,0.144295]
[1729473502651,0.000818,69303.0,69302.0,0.36504864]
[1729473502875,0.000818,69303.0,69302.0,0.37378092]
[1729473503625,0.000818,69303.0,69302.0,0.50335114]
[1729473504315,0.000818,69303.0,69302.0,0.50323288]
[1729473505024,0.000818,69303.0,69302.0,0.37366266]
[1729473505709,0.000818,69303.0,69302.0,0.62390843]
[1729473506166,0.000818,69303.0,69302.0,0.62590843]
[1729473506381,0.000818,69303.0,69302.0,0.50510843]
[1729473506625,0.000818,69303.0,69302.0,0.50710843]
[1729473507520,0.000818,69303.0,69302.0,0.96822495]
[1729473507740,0.000818,69303.0,69302.0,0.79545293]
[1729473508173,0.000818,69303.0,69302.0,0.73456992]
[1729473508395,1e-06,69303.0,69302.0,0.77813286]
[1729473508613,1e-06,69303.0,69302.0,0.74575552]
[1729473508834,1e-06,69303.0,69302.0,0.7780906]
[1729473509060,1e-06,69303.0,69302.0,0.7492106]
[1729473509289,0.000818,69322.0,69315.0,0.007]
[1729473509508,0.21563652,69316.0,69315.0,0.58456828]
[1729473509724,0.000818,69322.0,69315.0,0.58456828]
[1729473509725,0.000818,69322.0,69321.0,0.274256]
[1729473509946,0.000818,69322.0,69321.0,0.7396721]
[1729473510175,0.000817,69344.0,69341.0,0.167214]
[1729473510388,0.000817,69344.0,69341.0,0.19537064]
[1729473510610,0.000817,69344.0,69341.0,0.3535687]
[1729473510835,0.000817,69344.0,69343.0,0.14421]
[1729473511064,0.000817,69344.0,69343.0,0.17436664]
[1729473511320,0.000817,69344.0,69343.0,0.33056001]
[1729473511736,0.000817,69344.0,69343.0,0.39696576]
[1729473511948,0.000817,69344.0,69343.0,0.38616125]
[1729473512157,0.000817,69344.0,69343.0,0.39688313]
[1729473512404,0.000817,69344.0,69343.0,0.33247738]
[1729473512836,0.000817,69344.0,69343.0,0.39682326]
[1729473513066,0.000817,69344.0,69343.0,0.33247738]
[1729473513294,0.000817,69344.0,69343.0,0.49361118]
[1729473513541,0.000817,69344.0,69343.0,0.78651687]
[1729473513768,0.000817,69344.0,69343.0,0.67944532]
[1729473514263,0.00837075,69349.0,69348.0,0.1512]
[1729473514501,0.00837075,69349.0,69348.0,0.4557366]
[1729473514709,0.00837075,69349.0,69348.0,0.5501792]
[1729473514966,0.00837075,69349.0,69348.0,0.46462758]
[1729473515401,0.00837075,69349.0,69348.0,0.59028926]
[1729473515608,0.00837075,69349.0,69348.0,0.62549548]
[1729473515826,0.00837075,69349.0,69348.0,0.58014492]
[1729473516264,0.000817,69358.0,69357.0,0.151181]
[1729473516511,0.000817,69358.0,69357.0,0.39844237]
[1729473516762,0.000817,69358.0,69357.0,0.50466787]
[1729473516990,0.000817,69358.0,69357.0,0.54735231]
[1729473517459,0.000817,69358.0,69357.0,0.50466787]
[1729473517684,0.000817,69358.0,69357.0,0.46455053]
[1729473519025,0.000817,69358.0,69357.0,0.48166787]
[1729473519254,0.000817,69358.0,69357.0,0.44155053]
[1729473519897,0.000817,69358.0,69357.0,0.50459786]
[1729473520122,0.000817,69358.0,69357.0,0.49979849]
[1729473520353,0.000817,69358.0,69357.0,0.50445713]
[1729473521498,0.000817,69358.0,69357.0,0.47010679]
[1729473521768,0.000817,69358.0,69357.0,0.52612137]
[1729473522622,0.000817,69358.0,69357.0,0.51546201]
[1729473522834,0.000817,69358.0,69357.0,0.52610991]
[1729473523685,0.000817,69358.0,69357.0,0.52610416]
[1729473524326,0.000817,69373.0,69363.0,0.151169]